fUST/lending_fUST_20250221
["ID","MTS","AMOUNT","RATE_DAILY","PERIOD"]
[353920843,1740147043745,-538.11,0.00013945,2]
[353920845,1740147043756,-500.0,0.00013945,2]
[353920848,1740147043766,-500.0,0.00013945,2]
[353920849,1740147043775,-500.0,0.00013945,2]
[353920851,1740147043785,-500.0,0.00013945,2]
[353920854,1740147043794,-501.722218,0.00013945,2]
[353920856,1740147043804,-501.722218,0.00013945,2]
[353920858,1740147043813,-1366.71,0.00013945,2]
[353920860,1740147043823,-2624.22,0.00013945,2]
[353920862,1740147043833,-500.0,0.00013945,2]
[353920864,1740147043842,-500.0,0.00013945,2]
[353920866,1740147043852,-225.753422,0.00013945,2]
[353920868,1740147043861,-500.0,0.00013945,2]
[353920870,1740147043870,-500.0,0.00013945,2]
[353920872,1740147043879,-225.753422,0.00013945,2]
[353920874,1740147043889,-500.0,0.00013945,2]
[353920876,1740147043900,-500.0,0.00013945,2]
[353920878,1740147043913,-760.66,0.00013945,2]
[353920880,1740147043923,-788.01,0.00013945,2]
[353920882,1740147043932,-500.0,0.00013945,2]
[353920884,1740147043942,-2736.56,0.00013945,2]
[353920886,1740147043952,-500.0,0.00013945,2]
[353920888,1740147043961,-500.0,0.00013945,2]
[353920890,1740147043971,-8371.4,0.00013945,2]
[353920892,1740147043980,-1065.31,0.00013945,2]
[353920894,1740147043990,-500.0,0.00013945,2]
[353920896,1740147044001,-516.43,0.00013945,2]
[353920898,1740147044010,-500.0,0.00013945,2]
[353920900,1740147044020,-906.46,0.00013945,2]
[353920902,1740147044029,-500.0,0.00013945,2]
[353920904,1740147044038,-500.0,0.00013945,2]
[353920906,1740147044048,-1696.38,0.00013945,2]
[353920908,1740147044057,-500.0,0.00013945,2]
[353920910,1740147044066,-986.51,0.00013945,2]
[353920912,1740147044076,-500.0,0.00013945,2]
[353920914,1740147044086,-4021.81,0.00013945,2]
[353920916,1740147044095,-500.0,0.00013945,2]
[353920918,1740147044105,-500.0,0.00013945,2]
[353920920,1740147044115,-1107.11,0.00013945,2]
[353920922,1740147044124,-501.81,0.00013945,2]
[353920924,1740147044134,-500.0,0.00013945,2]
[353920926,1740147044143,-500.0,0.00013945,2]
[353920928,1740147044153,-500.0,0.00013945,2]
[353920930,1740147044162,-500.0,0.00013945,2]
[353920932,1740147044172,-750.82,0.00013945,2]
[353920934,1740147044181,-151.0,0.00013945,2]
[353920936,1740147044190,-500.0,0.00013945,2]
[353920938,1740147044199,-558.78,0.00013945,2]
[353920940,1740147044208,-500.0,0.00013972,2]
[353920942,1740147044217,-510.21662981,0.00013973,2]
[353920944,1740147044227,-615.38743237,0.00013973,2]
[353920946,1740147044236,-500.96222818,0.00013973,2]
[353920948,1740147044245,-500.0,0.00013973,2]
[353920950,1740147044256,-500.0,0.00013973,2]
[353920952,1740147044265,-500.0,0.00013973,2]
[353920954,1740147044274,-500.0,0.00013973,2]
[353920956,1740147044284,-500.0,0.00013973,2]
[353920958,1740147044293,-500.0,0.00013973,2]
[353920960,1740147044302,-500.7,0.0001398,2]
[353920962,1740147044312,-160.0,0.00013999,2]
[353920964,1740147044321,-11827.35402553,0.00014,2]
[353920971,1740147044383,-397.26602412,0.00013698,2]
[353920974,1740147044392,-151.0,0.00013927,2]
[353920975,1740147044401,-151.0,0.00013928,2]
[353920977,1740147044411,-151.0,0.00013928,2]
[353920979,1740147044420,-151.0,0.00013945,2]
[353920982,1740147044429,-12009.16833008,0.00014,2]
[353920984,1740147044440,-384.47543081,0.00014,2]
[353920989,1740147044479,-1514.49246619,0.00014,2]
[353921097,1740147046275,-5000.0,9.619e-05,2]
[353921099,1740147046285,-411.29,0.00010959,2]
[353921101,1740147046294,-355.2534587,0.00012141,2]
[353921103,1740147046303,-67284.03149225,0.00014,2]
[353922772,1740147221866,193.185356,9.041e-05,2]
[353922774,1740147458715,4758.21,8.001e-05,2]
[353922777,1740147848344,1000.0,0.00014,120]
[353922780,1740148113929,1079.29552904,0.00017888,90]
[353922783,1740148174127,-1848.81872707,9.716e-05,2]
[353922829,1740148232589,-2490.20984751,9.619e-05,2]
[353922840,1740148232687,-2509.79015249,9.619e-05,2]
[353922842,1740148232697,-561.39509456,9.716e-05,2]
[353922845,1740148232709,-2589.78617837,9.716e-05,2]
[353922847,1740148232718,-166.66666666,0.00010014,2]
[353922848,1740148232728,-300.0,0.00010958,2]
[353922851,1740148232738,-3532.70283073,0.00011391,2]
[353922853,1740148232749,-2317.40624747,0.00011391,2]
[353922855,1740148232759,-504.1566306,0.00011434,2]
[353922857,1740148232770,-24900.0,0.00011519,2]
[353922859,1740148232786,-500.0,0.00011588,2]
[353922860,1740148232796,-420.0,0.00012042,2]
[353922862,1740148232806,-199.64183241,0.000129,2]
[353922864,1740148232815,-199.64183241,0.000129,2]
[353922867,1740148232825,-261.0,0.00013,2]
[353922869,1740148232835,-587.0,0.00013233,2]
[353922870,1740148232844,-242.18153297,0.00013632,2]
[353922872,1740148232854,-500.0,0.00013698,2]
[353922874,1740148232863,-500.0,0.00013698,2]
[353922875,1740148232873,-500.0,0.00013698,2]
[353922876,1740148232882,-512.0,0.00013698,2]
[353922877,1740148232892,-519.87479579,0.00013698,2]
[353922878,1740148232901,-604.67824573,0.00013698,2]
[353922879,1740148232910,-500.0,0.00013698,2]
[353922880,1740148232920,-500.0,0.00013698,2]
[353922881,1740148232933,-500.0,0.00013698,2]
[353922882,1740148232945,-526.9706818,0.00013698,2]
[353922883,1740148232955,-500.0,0.00013698,2]
[353922884,1740148232964,-500.0,0.00013698,2]
[353922885,1740148232973,-500.0,0.00013698,2]
[353922886,1740148232983,-500.0,0.00013698,2]
[353922887,1740148232992,-630.69117156,0.00013698,2]
[353922888,1740148233001,-500.0,0.00013698,2]
[353922889,1740148233010,-503.77443438,0.00013698,2]
[353922890,1740148233019,-504.17019247,0.00013698,2]
[353922891,1740148233029,-206.81240241,0.00013698,2]
[353922892,1740148233046,-293.18759759,0.00013698,2]
[353922893,1740148233057,-454.84183038,0.00013698,2]
[353922894,1740148233067,-501.8414813,0.00013698,2]
[353922895,1740148233077,-500.0,0.00013698,2]
[353922896,1740148233087,-160.86666227,0.00013698,2]
[353922897,1740148233097,-500.0,0.00013698,2]
[353922898,1740148233243,-500.0,0.00013698,2]
[353922899,1740148233254,-504.14589318,0.00013698,2]
[353922900,1740148233264,-163.05,0.00013698,2]
[353922901,1740148233275,-501.67109497,0.00013698,2]
[353922902,1740148233287,-212.52268403,0.00013698,2]
[353922903,1740148233298,-500.0,0.00013698,2]
[353922904,1740148233309,-500.0,0.00013698,2]
[353922905,1740148233319,-501.80598305,0.00013698,2]
[353922906,1740148233329,-500.0,0.00013698,2]
[353922907,1740148233341,-500.0,0.00013698,2]
[353922908,1740148233351,-500.0,0.00013698,2]
[353922909,1740148233364,-500.0,0.00013698,2]
[353922910,1740148233374,-502.7775335,0.00013698,2]
[353922911,1740148233385,-500.0,0.00013698,2]
[353922912,1740148233396,-371.51144201,0.00013698,2]
[353922913,1740148233407,-500.0,0.00013698,2]
[353922914,1740148233417,-500.0,0.00013698,2]
[353922915,1740148233427,-500.0,0.00013698,2]
[353922916,1740148233438,-500.0,0.00013698,2]
[353922917,1740148233448,-500.0,0.00013698,2]
[353922918,1740148233459,-500.0,0.00013698,2]
[353922919,1740148233468,-500.0,0.00013698,2]
[353922920,1740148233482,-237.13,0.00013698,2]
[353922921,1740148233494,-500.0,0.00013698,2]
[353922922,1740148233504,-500.0,0.00013698,2]
[353922923,1740148233514,-500.0,0.00013698,2]
[353922924,1740148233525,-500.0,0.00013698,2]
[353922925,1740148233535,-500.0,0.00013698,2]
[353922926,1740148233544,-500.0,0.00013698,2]
[353922927,1740148233555,-500.0,0.00013698,2]
[353922928,1740148233564,-500.0,0.00013698,2]
[353922929,1740148233573,-500.0,0.00013698,2]
[353922930,1740148233584,-500.0,0.00013698,2]
[353922931,1740148233593,-500.0,0.00013698,2]
[353922932,1740148233603,-216.2,0.00013698,2]
[353922933,1740148233613,-500.0,0.00013698,2]
[353922934,1740148233623,-500.0,0.00013698,2]
[353922935,1740148233632,-500.0,0.00013698,2]
[353922936,1740148233642,-500.0,0.00013698,2]
[353922937,1740148233651,-500.0,0.00013698,2]
[353922938,1740148233660,-500.0,0.00013698,2]
[353922939,1740148233670,-500.0,0.00013698,2]
[353922940,1740148233680,-500.0,0.00013698,2]
[353922941,1740148233690,-500.0,0.00013698,2]
[353922942,1740148233700,-532.97715623,0.00013698,2]
[353922943,1740148233711,-500.0,0.00013698,2]
[353922944,1740148233721,-500.0,0.00013698,2]
[353922945,1740148233730,-471.37753631,0.00013698,2]
[353922946,1740148233739,-500.0,0.00013698,2]
[353922947,1740148233749,-500.0,0.00013698,2]
[353922948,1740148233759,-599.85,0.00013698,2]
[353922949,1740148233773,-500.0,0.00013698,2]
[353922950,1740148233782,-500.0,0.00013698,2]
[353922951,1740148233792,-500.0,0.00013698,2]
[353922952,1740148233802,-500.0,0.00013698,2]
[353922953,1740148233811,-500.0,0.00013698,2]
[353922954,1740148233822,-500.85,0.00013698,2]
[353922955,1740148233832,-500.0,0.00013698,2]
[353922956,1740148233841,-500.0,0.00013698,2]
[353922957,1740148233852,-510.9,0.00013698,2]
[353922958,1740148233866,-500.0,0.00013698,2]
[353922959,1740148233878,-500.0,0.00013698,2]
[353922960,1740148233888,-500.0,0.00013698,2]
[353922961,1740148233897,-500.0,0.00013698,2]
[353922962,1740148233907,-500.0,0.00013698,2]
[353922963,1740148233917,-500.0,0.00013698,2]
[353922964,1740148233926,-500.0,0.00013698,2]
[353922965,1740148233936,-500.0,0.00013698,2]
[353922966,1740148233947,-500.0,0.00013698,2]
[353922967,1740148233956,-500.0,0.00013698,2]
[353922968,1740148233965,-500.0,0.00013698,2]
[353922969,1740148233975,-500.0,0.00013698,2]
[353922970,1740148233984,-500.0,0.00013698,2]
[353922971,1740148233994,-500.0,0.00013698,2]
[353922972,1740148234003,-500.0,0.00013698,2]
[353922973,1740148234012,-500.0,0.00013698,2]
[353922974,1740148234022,-500.0,0.00013698,2]
[353922975,1740148234031,-1169.59,0.00013698,2]
[353922976,1740148234041,-500.0,0.00013698,2]
[353922977,1740148234051,-500.0,0.00013698,2]
[353922978,1740148234060,-500.0,0.00013698,2]
[353922979,1740148234069,-500.0,0.00013698,2]
[353922980,1740148234079,-2551.0,0.00013698,2]
[353922981,1740148234088,-500.0,0.00013698,2]
[353922982,1740148234098,-500.0,0.00013698,2]
[353922983,1740148234108,-654.72,0.00013698,2]
[353922984,1740148234117,-291.80128598,0.00013698,2]
[353922985,1740148234127,-500.0,0.00013698,2]
[353922986,1740148234137,-466.07056001,0.00013698,2]
[353923001,1740148238345,-342.74,0.00010959,2]
[353923002,1740148238355,-199.64183241,0.000129,2]
[353923003,1740148238367,-33.92943999,0.00013698,2]
[353923004,1740148238376,-500.0,0.00013698,2]
[353923005,1740148238386,-501.39903388,0.00013698,2]
[353923006,1740148238397,-500.0,0.00013698,2]
[353923007,1740148238407,-500.0,0.00013698,2]
[353923008,1740148238416,-500.0,0.00013698,2]
[353923009,1740148238425,-500.0,0.00013698,2]
[353923010,1740148238435,-500.0,0.00013698,2]
[353923011,1740148238445,-500.0,0.00013698,2]
[353923012,1740148238455,-504.64122037,0.00013698,2]
[353923013,1740148238464,-468.97891986,0.00013698,2]
[353923014,1740148238474,-500.0,0.00013698,2]
[353923015,1740148238483,-2525.72,0.00013698,2]
[353923016,1740148238492,-500.0,0.00013698,2]
[353923017,1740148238501,-500.0,0.00013698,2]
[353923018,1740148238510,-500.0,0.00013698,2]
[353923019,1740148238521,-502.68368155,0.00013698,2]
[353923020,1740148238530,-725.29,0.00013698,2]
[353923021,1740148238540,-443.10445159,0.00013698,2]
[353923022,1740148238549,-7818.53,0.00013698,2]
[353923023,1740148238558,-500.0,0.00013698,2]
[353923024,1740148238567,-500.0,0.00013698,2]
[353923025,1740148238577,-1006.86,0.00013698,2]
[353923026,1740148238586,-500.0,0.00013698,2]
[353923027,1740148238595,-500.0,0.00013698,2]
[353923028,1740148238604,-500.0,0.00013698,2]
[353923029,1740148238613,-500.0,0.00013698,2]
[353923030,1740148238628,-500.0,0.00013698,2]
[353923031,1740148238638,-500.0,0.00013698,2]
[353923032,1740148238647,-500.0,0.00013698,2]
[353923033,1740148238656,-500.0,0.00013698,2]
[353923034,1740148238667,-500.0,0.00013698,2]
[353923035,1740148238676,-500.0,0.00013698,2]
[353923036,1740148238685,-500.0,0.00013698,2]
[353923037,1740148238694,-500.0,0.00013698,2]
[353923038,1740148238703,-500.0,0.00013698,2]
[353923039,1740148238712,-500.0,0.00013698,2]
[353923040,1740148238722,-170.60194545,0.00013698,2]
[353923041,1740148238731,-502.3889052,0.00013698,2]
[353923042,1740148238740,-500.0,0.00013698,2]
[353923043,1740148238749,-501.35913382,0.00013698,2]
[353923044,1740148238758,-500.0,0.00013698,2]
[353923045,1740148238767,-500.0,0.00013698,2]
[353923046,1740148238780,-500.0,0.00013698,2]
[353923047,1740148238790,-536.17,0.00013698,2]
[353923048,1740148238799,-500.0,0.00013698,2]
[353923049,1740148238808,-846.41,0.00013698,2]
[353923050,1740148238817,-590.02296924,0.00013698,2]
[353923051,1740148238826,-500.0,0.00013698,2]
[353923052,1740148238836,-867.1,0.00013698,2]
[353923053,1740148238845,-500.7774841,0.00013698,2]
[353923054,1740148238854,-3474.21,0.00013698,2]
[353923055,1740148238863,-502.5719089,0.00013698,2]
[353923056,1740148238872,-500.0,0.00013698,2]
[353923057,1740148238882,-501.18232424,0.00013698,2]
[353923058,1740148238891,-500.0,0.00013698,2]
[353923059,1740148238900,-1601.2,0.00013698,2]
[353923060,1740148238909,-500.0,0.00013698,2]
[353923061,1740148238918,-500.0,0.00013698,2]
[353923062,1740148238928,-500.0,0.00013698,2]
[353923063,1740148238938,-500.0,0.00013698,2]
[353923064,1740148238947,-500.0,0.00013698,2]
[353923065,1740148238956,-500.0,0.00013698,2]
[353923066,1740148238965,-500.0,0.00013698,2]
[353923067,1740148238974,-500.0,0.00013698,2]
[353923068,1740148238983,-985.42,0.00013698,2]
[353923069,1740148238992,-500.0,0.00013698,2]
[353923070,1740148239001,-500.0,0.00013698,2]
[353923071,1740148239010,-502.07321453,0.00013698,2]
[353923072,1740148239021,-500.0,0.00013698,2]
[353923073,1740148239030,-500.0,0.00013698,2]
[353923074,1740148239041,-500.0,0.00013698,2]
[353923075,1740148239051,-500.0,0.00013698,2]
[353923076,1740148239060,-500.0,0.00013698,2]
[353923077,1740148239069,-500.0,0.00013698,2]
[353923078,1740148239078,-500.0,0.00013698,2]
[353923079,1740148239086,-359.41501734,0.00013698,2]
[353923080,1740148239095,-504.9,0.00013698,2]
[353923081,1740148239105,-500.0,0.00013698,2]
[353923082,1740148239113,-500.0,0.00013698,2]
[353923083,1740148239122,-500.0,0.00013698,2]
[353923084,1740148239132,-500.0,0.00013698,2]
[353923085,1740148239141,-500.0,0.00013698,2]
[353923086,1740148239150,-500.0,0.00013698,2]
[353923087,1740148239159,-679.69,0.00013698,2]
[353923088,1740148239168,-500.0,0.00013698,2]
[353923089,1740148239177,-352.87443267,0.00013698,2]
[353923090,1740148239186,-500.0,0.00013698,2]
[353923091,1740148239196,-500.0,0.00013698,2]
[353923092,1740148239205,-500.0,0.00013698,2]
[353923093,1740148239214,-248.038547,0.00013699,2]
[353923094,1740148239223,-159.912923,0.00013699,2]
[353923095,1740148239233,-13276.64253133,0.00013748,2]
[353923096,1740148239242,-500.0,0.0001378,2]
[353923097,1740148239251,-500.0,0.0001378,2]
[353923098,1740148239260,-200.688887,0.0001378,2]
[353923099,1740148239269,-200.688887,0.0001378,2]
[353923100,1740148239280,-500.0,0.0001378,2]
[353923101,1740148239290,-182.29,0.0001378,2]
[353923102,1740148239300,-500.0,0.0001378,2]
[353923103,1740148239310,-375.83557002,0.0001378,2]
[353923104,1740148239319,-500.0,0.0001378,2]
[353923105,1740148239328,-190.65,0.0001378,2]
[353923106,1740148239337,-364.4694089,0.0001378,2]
[353923107,1740148239346,-500.0,0.0001378,2]
[353923108,1740148239356,-500.0,0.0001378,2]
[353923109,1740148239368,-500.0,0.0001378,2]
[353923110,1740148239377,-573.53599855,0.0001378,2]
[353923111,1740148239387,-500.0,0.0001378,2]
[353923112,1740148239399,-500.0,0.0001378,2]
[353923113,1740148239411,-510.9,0.0001378,2]
[353923114,1740148239421,-608.53,0.0001378,2]
[353923115,1740148239431,-500.0,0.0001378,2]
[353923116,1740148239440,-218.345316,0.0001378,2]
[353923117,1740148239449,-500.0,0.0001378,2]
[353923118,1740148239459,-368.475301,0.0001378,2]
[353923119,1740148239469,-1169.59,0.0001378,2]
[353923120,1740148239479,-368.475301,0.0001378,2]
[353923121,1740148239489,-500.0,0.0001378,2]
[353923122,1740148239499,-500.0,0.0001378,2]
[353923123,1740148239508,-610.65818748,0.0001378,2]
[353923124,1740148239523,-1940.34181252,0.0001378,2]
[353923125,1740148239532,-151.0,0.0001378,2]
[353923126,1740148239542,-500.0,0.0001378,2]
[353923127,1740148239551,-654.72,0.0001378,2]
[353923128,1740148239561,-500.0,0.0001378,2]
[353923129,1740148239571,-500.0,0.0001378,2]
[353923130,1740148239580,-2525.72,0.0001378,2]
[353923131,1740148239590,-500.0,0.0001378,2]
[353923132,1740148239600,-725.29,0.0001378,2]
[353923133,1740148239610,-151.0,0.0001378,2]
[353923134,1740148239619,-7818.53,0.0001378,2]
[353923135,1740148239627,-151.0,0.0001378,2]
[353923136,1740148239637,-500.0,0.0001378,2]
[353923137,1740148239646,-1006.86,0.0001378,2]
[353923138,1740148239655,-500.0,0.0001378,2]
[353923139,1740148239664,-500.0,0.0001378,2]
[353923140,1740148239674,-500.0,0.0001378,2]
[353923141,1740148239683,-500.0,0.0001378,2]
[353923142,1740148239692,-500.0,0.0001378,2]
[353923143,1740148239701,-500.0,0.0001378,2]
[353923144,1740148239710,-500.0,0.0001378,2]
[353923145,1740148239719,-500.0,0.0001378,2]
[353923146,1740148239729,-536.17,0.0001378,2]
[353923147,1740148239738,-612.42265089,0.0001378,2]
[353923148,1740148239747,-846.41,0.0001378,2]
[353923149,1740148239757,-500.0,0.0001378,2]
[353923150,1740148239766,-867.1,0.0001378,2]
[353923151,1740148239873,-3474.21,0.0001378,2]
[353923152,1740148239882,-500.0,0.0001378,2]
[353923154,1740148239891,-500.0,0.0001378,2]
[353923156,1740148239900,-1601.2,0.0001378,2]
[353923157,1740148239909,-500.0,0.0001378,2]
[353923158,1740148239918,-500.0,0.0001378,2]
[353923159,1740148239927,-500.0,0.0001378,2]
[353923160,1740148239936,-500.0,0.0001378,2]
[353923161,1740148239945,-500.0,0.0001378,2]
[353923162,1740148239954,-500.0,0.0001378,2]
[353923163,1740148239964,-985.42,0.0001378,2]
[353923164,1740148239973,-500.0,0.0001378,2]
[353923165,1740148239982,-500.0,0.0001378,2]
[353923166,1740148239991,-500.0,0.0001378,2]
[353923167,1740148240000,-679.69,0.0001378,2]
[353923168,1740148240010,-500.0,0.0001378,2]
[353923169,1740148240019,-158.226885,0.0001386,2]
[353923170,1740148240030,-151.0,0.0001386,2]
[353923171,1740148240039,-151.0,0.0001386,2]
[353923172,1740148240048,-151.0,0.0001386,2]
[353923173,1740148240058,-500.0,0.00013863,2]
[353923174,1740148240067,-151.0,0.00013863,2]
[353923175,1740148240076,-200.688887,0.00013863,2]
[353923176,1740148240085,-200.688887,0.00013863,2]
[353923178,1740148240094,-500.0,0.00013863,2]
[353923179,1740148240103,-500.0,0.00013863,2]
[353923180,1740148240112,-500.0,0.00013863,2]
[353923181,1740148240121,-500.0,0.00013863,2]
[353923182,1740148240130,-500.0,0.00013863,2]
[353923183,1740148240140,-500.0,0.00013863,2]
[353923184,1740148240149,-500.0,0.00013863,2]
[353923185,1740148240159,-510.9,0.00013863,2]
[353923186,1740148240169,-500.0,0.00013863,2]
[353923187,1740148240179,-500.0,0.00013863,2]
[353923188,1740148240188,-368.475301,0.00013863,2]
[353923189,1740148240198,-1169.59,0.00013863,2]
[353923190,1740148240207,-368.475301,0.00013863,2]
[353923191,1740148240217,-500.0,0.00013863,2]
[353923192,1740148240226,-334.88622591,0.00013863,2]
[353923193,1740148240237,-2551.0,0.00013863,2]
[353923194,1740148240246,-500.0,0.00013863,2]
[353923195,1740148240256,-654.72,0.00013863,2]
[353923196,1740148240265,-500.0,0.00013863,2]
[353923197,1740148240276,-500.0,0.00013863,2]
[353923198,1740148240286,-2525.72,0.00013863,2]
[353923199,1740148240295,-500.0,0.00013863,2]
[353923200,1740148240304,-725.29,0.00013863,2]
[353923201,1740148240313,-7818.53,0.00013863,2]
[353923202,1740148240322,-500.0,0.00013863,2]
[353923203,1740148240332,-1006.86,0.00013863,2]
[353923204,1740148240341,-500.0,0.00013863,2]
[353923205,1740148240349,-500.0,0.00013863,2]
[353923206,1740148240359,-500.0,0.00013863,2]
[353923207,1740148240369,-626.3008049,0.00013863,2]
[353923208,1740148240378,-500.0,0.00013863,2]
[353923209,1740148240387,-500.0,0.00013863,2]
[353923211,1740148240399,-500.0,0.00013863,2]
[353923213,1740148240410,-536.17,0.00013863,2]
[353923215,1740148240419,-846.41,0.00013863,2]
[353923217,1740148240429,-179.04,0.00013863,2]
[353923219,1740148240439,-867.1,0.00013863,2]
[353923220,1740148240448,-3474.21,0.00013863,2]
[353923222,1740148240457,-500.0,0.00013863,2]
[353923223,1740148240467,-500.0,0.00013863,2]
[353923224,1740148240476,-1601.2,0.00013863,2]
[353923225,1740148240486,-500.0,0.00013863,2]
[353923226,1740148240495,-500.0,0.00013863,2]
[353923227,1740148240505,-500.0,0.00013863,2]
[353923228,1740148240514,-985.42,0.00013863,2]
[353923229,1740148240523,-500.0,0.00013863,2]
[353923230,1740148240532,-500.0,0.00013863,2]
[353923231,1740148240541,-679.69,0.00013863,2]
[353923232,1740148240550,-500.0,0.00013863,2]
[353923233,1740148240559,-207.20702282,0.00013898,2]
[353923234,1740148240568,-151.0,0.000139,2]
[353923235,1740148240578,-500.0,0.00013916,2]
[353923237,1740148240587,-500.0,0.00013916,2]
[353923238,1740148240596,-157.77,0.00013916,2]
[353923240,1740148240605,-391.4292454,0.00013916,2]
[353923241,1740148240614,-500.0,0.00013916,2]
[353923242,1740148240623,-500.0,0.00013916,2]
[353923243,1740148240632,-488.52500316,0.00013916,2]
[353923244,1740148240641,-500.0,0.00013916,2]
[353923245,1740148240650,-500.0,0.00013916,2]
[353923246,1740148240659,-500.0,0.00013916,2]
[353923247,1740148240668,-503.07686475,0.00013916,2]
[353923248,1740148240677,-500.0,0.00013916,2]
[353923250,1740148240687,-500.0,0.00013916,2]
[353923252,1740148240696,-500.0,0.00013916,2]
[353923253,1740148240705,-500.0,0.00013916,2]
[353923254,1740148240714,-500.0,0.00013916,2]
[353923255,1740148240724,-371.0276759,0.00013916,2]
[353923256,1740148240733,-500.0,0.00013916,2]
[353923257,1740148240743,-500.0,0.00013916,2]
[353923258,1740148240752,-500.0,0.00013916,2]
[353923259,1740148240761,-500.0,0.00013916,2]
[353923260,1740148240771,-277.44304879,0.00013916,2]
[353923261,1740148240782,-172.16034835,0.00013916,2]
[353923262,1740148240791,-500.0,0.00013916,2]
[353923263,1740148240800,-500.0,0.00013916,2]
[353923264,1740148240809,-500.0,0.00013916,2]
[353923265,1740148240819,-500.0,0.00013916,2]
[353923266,1740148240828,-500.0,0.00013916,2]
[353923267,1740148240837,-500.0,0.00013916,2]
[353923268,1740148240846,-500.0,0.00013916,2]
[353923269,1740148240855,-500.0,0.00013916,2]
[353923270,1740148240864,-500.0,0.00013916,2]
[353923271,1740148240873,-368.475301,0.00013918,2]
[353923272,1740148240882,-368.475301,0.00013918,2]
[353923273,1740148240891,-170.828938,0.00013918,2]
[353923274,1740148240900,-151.0,0.00013918,2]
[353923275,1740148240909,-151.0,0.00013918,2]
[353923276,1740148240918,-7438.69753278,0.00013918,2]
[353923277,1740148240930,-203.445805,0.00013945,2]
[353923278,1740148240941,-500.0,0.00013945,2]
[353923279,1740148240951,-151.0,0.00013945,2]
[353923280,1740148240960,-200.688887,0.00013945,2]
[353923282,1740148240969,-200.688887,0.00013945,2]
[353923284,1740148240978,-500.0,0.00013945,2]
[353923286,1740148240988,-500.0,0.00013945,2]
[353923288,1740148240997,-500.0,0.00013945,2]
[353923290,1740148241006,-500.0,0.00013945,2]
[353923292,1740148241015,-589.24814031,0.00013945,2]
[353923294,1740148241028,-500.0,0.00013945,2]
[353923295,1740148241037,-500.0,0.00013945,2]
[353923296,1740148241046,-510.9,0.00013945,2]
[353923297,1740148241055,-500.0,0.00013945,2]
[353923298,1740148241064,-500.0,0.00013945,2]
[353923299,1740148241073,-368.475301,0.00013945,2]
[353923300,1740148241082,-1169.59,0.00013945,2]
[353923301,1740148241091,-500.0,0.00013945,2]
[353923302,1740148241100,-368.475301,0.00013945,2]
[353923303,1740148241110,-2551.0,0.00013945,2]
[353923304,1740148241119,-500.0,0.00013945,2]
[353923305,1740148241128,-654.72,0.00013945,2]
[353923306,1740148241137,-395.24488847,0.00013945,2]
[353923307,1740148241146,-500.0,0.00013945,2]
[353923308,1740148241155,-2525.72,0.00013945,2]
[353923309,1740148241164,-500.0,0.00013945,2]
[353923310,1740148241173,-725.29,0.00013945,2]
[353923311,1740148241183,-151.0,0.00013945,2]